fUSD/lending_fUSD_20260610
["ID","MTS","AMOUNT","RATE_DAILY","PERIOD"]
[424683539,1781046664000,-315.20979724,0.00029005,2]
[424683560,1781046664000,-315.98796726,0.00029005,2]
[424683610,1781046664000,-166.6875,0.00029041,2]
[424683561,1781046664000,-305.73286893,0.00029005,2]
[424683595,1781046664000,-300.0,0.00029009,10]
[424683596,1781046664000,-2011.53,0.0002901,2]
[424683603,1781046664000,-356.75701955,0.00029036,2]
[424683598,1781046664000,-2000.0,0.00029022,2]
[424683601,1781046664000,-200.0,0.00029022,2]
[424683597,1781046664000,-2546.44,0.0002901,2]
[424683604,1781046664000,-266.2421499,0.00029036,2]
[424683602,1781046664000,-357.62496992,0.00029036,2]
[424683599,1781046664000,-200.0,0.00029022,2]
[424683600,1781046664000,-1358.78611812,0.00029022,2]
[424683606,1781046664000,-353.75538844,0.00029036,2]
[424683615,1781046664000,-184.56573143,0.00029063,2]
[424683605,1781046664000,-318.43995969,0.00029036,2]
[424683614,1781046664000,-200.0,0.00029044,2]
[424683607,1781046664000,-329.56907461,0.00029036,2]
[424683612,1781046664000,-2546.44,0.00029042,7]
[424683611,1781046664000,-2011.53,0.00029042,7]
[424683609,1781046664000,-300.0,0.00029041,10]
[424683613,1781046664000,-200.0,0.00029044,2]
[424683617,1781046664000,-393.77645364,0.00029063,2]
[424683616,1781046664000,-363.46112489,0.00029063,2]
[424683618,1781046664000,-321.85991988,0.00029063,2]
[424683564,1781046664000,-210.62006045,0.00029005,2]
[424683585,1781046664000,-344.84879075,0.00029007,2]
[424683594,1781046664000,-533.91146726,0.00029007,2]
[424683608,1781046664000,-333.78688374,0.00029036,2]
[424683593,1781046664000,-479.43058307,0.00029007,2]
[424683569,1781046664000,-177.507843,0.00029005,2]
[424683583,1781046664000,-300.0,0.00029006,10]
[424683570,1781046664000,-177.09370736,0.00029005,2]
[424683571,1781046664000,-307.9743227,0.00029005,2]
[424683581,1781046664000,-169.72,0.00029005,3]
[424683580,1781046664000,-382.84927099,0.00029005,2]
[424683579,1781046664000,-393.36480739,0.00029005,2]
[424683572,1781046664000,-175.85073734,0.00029005,2]
[424683576,1781046664000,-952.62843712,0.00029005,2]
[424683573,1781046664000,-339.3588979,0.00029005,2]
[424683575,1781046664000,-380.13226394,0.00029005,2]
[424683578,1781046664000,-243.38079167,0.00029005,2]
[424683567,1781046664000,-1022.70434711,0.00029005,2]
[424683590,1781046664000,-223.96376897,0.00029007,2]
[424683577,1781046664000,-330.62553978,0.00029005,2]
[424683582,1781046664000,-300.0,0.00029006,10]
[424683589,1781046664000,-382.75589499,0.00029007,2]
[424683591,1781046664000,-151.61051691,0.00029007,2]
[424683586,1781046664000,-215.89443895,0.00029007,2]
[424683588,1781046664000,-219.26265665,0.00029007,2]
[424683587,1781046664000,-152.03155094,0.00029007,2]
[424683592,1781046664000,-406.92735166,0.00029007,2]
[424683584,1781046664000,-306.7743824,0.00029007,2]
[424683574,1781046664000,-217.01510889,0.00029005,2]
[424683648,1781046665000,-150.0,0.00029216,2]
[424683656,1781046665000,-2011.69,0.00029232,7]
[424683652,1781046665000,-1358.0,0.00029216,2]
[424683654,1781046665000,-1274.0,0.00029216,2]
[424683646,1781046665000,-150.0,0.00029216,2]
[424683657,1781046665000,-2546.48,0.00029232,7]
[424683650,1781046665000,-150.0,0.00029216,2]
[424683649,1781046665000,-150.0,0.00029216,2]
[424683653,1781046665000,-382.0,0.00029216,2]
[424683647,1781046665000,-150.0,0.00029216,2]
[424683651,1781046665000,-3555.0,0.00029216,2]
[424683655,1781046665000,-1227.0,0.00029216,2]
[424683662,1781046665000,-2096.0,0.00029288,30]
[424683660,1781046665000,-742.0,0.00029288,30]
[424683659,1781046665000,-772.0,0.00029273,4]
[424683661,1781046665000,-562.0,0.00029288,30]
[424683666,1781046665000,-698.0,0.00029288,30]
[424683665,1781046665000,-3176.0,0.00029288,30]
[424683667,1781046665000,-1207.0,0.00029288,30]
[424683669,1781046665000,-3153.62,0.00029299,7]
[424683668,1781046665000,-326.0,0.00029288,30]
[424683663,1781046665000,-778.0,0.00029288,30]
[424683671,1781046665000,-4688.57,0.00029299,7]
[424683658,1781046665000,-500.0,0.00029237,14]
[424683643,1781046665000,-150.0,0.00029216,2]
[424683623,1781046665000,-2011.53,0.00029074,30]
[424683645,1781046665000,-150.0,0.00029216,2]
[424683679,1781046665000,-200.0,0.00029334,2]
[424683625,1781046665000,-300.0,0.00029104,10]
[424683624,1781046665000,-2546.44,0.00029074,30]
[424683619,1781046665000,-570.41076852,0.00029063,2]
[424683622,1781046665000,-300.0,0.00029073,10]
[424683620,1781046665000,-369.41586342,0.00029063,2]
[424683621,1781046665000,-448.59340503,0.00029063,2]
[424683627,1781046665000,-2546.44,0.00029105,2]
[424683628,1781046665000,-401.81411277,0.0002913,20]
[424683629,1781046665000,-519.02839217,0.0002913,5]
[424683631,1781046665000,-3153.62,0.00029132,30]
[424683644,1781046665000,-150.0,0.00029216,2]
[424683630,1781046665000,-300.0,0.00029131,10]
[424683632,1781046665000,-11677.78,0.00029132,30]
[424683634,1781046665000,-4688.58,0.00029132,30]
[424683636,1781046665000,-2546.44,0.00029137,7]
[424683635,1781046665000,-2011.53,0.00029137,7]
[424683633,1781046665000,-4688.57,0.00029132,30]
[424683637,1781046665000,-2011.53,0.00029169,30]
[424683639,1781046665000,-181.9275051,0.00029192,30]
[424683641,1781046665000,-2546.44,0.00029201,2]
[424683638,1781046665000,-2546.44,0.00029169,30]
[424683640,1781046665000,-2011.53,0.00029201,2]
[424683642,1781046665000,-150.0,0.00029216,2]
[424683626,1781046665000,-2011.53,0.00029105,2]
[424683673,1781046665000,-993.13,0.000293,7]
[424683664,1781046665000,-620.0,0.00029288,30]
[424683672,1781046665000,-4688.58,0.00029299,7]
[424683705,1781046665000,-1181.13,0.00029746,2]
[424683700,1781046665000,-3153.62,0.00029634,30]
[424683703,1781046665000,-261.77629756,0.00029666,2]
[424683706,1781046665000,-1069.79,0.00029795,7]
[424683709,1781046665000,-3153.62,0.00029802,7]
[424683707,1781046665000,-1126.33,0.00029795,7]
[424683714,1781046665000,-1000.0,0.0002987,2]
[424683711,1781046665000,-772.0,0.00029807,4]
[424683708,1781046665000,-557.02603325,0.00029799,2]
[424683712,1781046665000,-500.0,0.0002987,2]
[424683716,1781046665000,-349.39032877,0.00029873,2]
[424683701,1781046665000,-11677.78,0.00029634,30]
[424683710,1781046665000,-11677.78,0.00029802,7]
[424683715,1781046665000,-1000.0,0.0002987,2]
[424683717,1781046665000,-300.91200372,0.00029873,2]
[424683718,1781046665000,-323.99404713,0.00029873,2]
[424683719,1781046665000,-319.60804627,0.00029873,2]
[424683720,1781046665000,-333.11500329,0.00029875,2]
[424683722,1781046665000,-465.64174267,0.00029875,2]
[424683721,1781046665000,-328.6824496,0.00029875,2]
[424683724,1781046665000,-488.46024132,0.00029875,2]
[424683726,1781046665000,-304.91957952,0.00029875,2]
[424683723,1781046665000,-416.55520558,0.00029875,2]
[424683670,1781046665000,-11677.78,0.00029299,7]
[424683713,1781046665000,-500.0,0.0002987,2]
[424683702,1781046665000,-942.73314658,0.00029648,7]
[424683725,1781046665000,-318.09976912,0.00029875,2]
[424683699,1781046665000,-200.0,0.00029628,2]
[424683681,1781046665000,-662.0,0.00029343,30]
[424683680,1781046665000,-200.0,0.00029334,2]
[424683676,1781046665000,-1579.27288988,0.00029315,2]
[424683674,1781046665000,-200.0,0.00029312,2]
[424683675,1781046665000,-200.0,0.00029312,2]
[424683727,1781046665000,-433.11731134,0.00029875,2]
[424683677,1781046665000,-152.0,0.00029316,13]
[424683704,1781046665000,-169.71,0.00029728,3]
[424683682,1781046665000,-798.0,0.00029343,30]
[424683685,1781046665000,-2143.0,0.00029351,30]
[424683684,1781046665000,-665.0,0.00029351,30]
[424683683,1781046665000,-2000.0,0.00029351,7]
[424683678,1781046665000,-261.77629756,0.00029319,2]
[424683686,1781046665000,-4051.0,0.00029351,30]
[424683698,1781046665000,-200.0,0.00029628,2]
[424683687,1781046665000,-17500.0,0.00029463,7]
[424683697,1781046665000,-320.0,0.00029608,2]
[424683695,1781046665000,-200.0,0.00029605,2]
[424683694,1781046665000,-200.0,0.00029605,2]
[424683696,1781046665000,-6709.0,0.00029608,10]
[424683692,1781046665000,-166.6875,0.00029589,2]
[424683689,1781046665000,-11677.78,0.00029467,2]
[424683688,1781046665000,-3153.62,0.00029467,2]
[424683690,1781046665000,-150.0,0.00029534,2]
[424683691,1781046665000,-565.0,0.00029576,7]
[424683693,1781046665000,-993.13,0.000296,7]
[424683763,1781046666000,-555.41277301,0.00029875,2]
[424683765,1781046666000,-244.88243277,0.00029875,2]
[424683764,1781046666000,-200.70145261,0.00029875,2]
[424683762,1781046666000,-1534.05652066,0.00029875,2]
[424683756,1781046666000,-667.1005897,0.00029875,2]
[424683758,1781046666000,-285.87174251,0.00029875,2]
[424683761,1781046666000,-225.63238563,0.00029875,2]
[424683760,1781046666000,-510.55788788,0.00029875,2]
[424683757,1781046666000,-174.78371781,0.00029875,2]
[424683759,1781046666000,-421.2401209,0.00029875,2]
[424683766,1781046666000,-354.18741472,0.00029875,2]
[424683779,1781046666000,-221.66564699,0.00029875,2]
[424683769,1781046666000,-509.03834685,0.00029875,2]
[424683768,1781046666000,-461.96148406,0.00029875,2]
[424683772,1781046666000,-434.03021778,0.00029875,2]
[424683776,1781046666000,-495.93830967,0.00029875,2]
[424683771,1781046666000,-570.19839591,0.00029875,2]
[424683777,1781046666000,-267.13414426,0.00029875,2]
[424683774,1781046666000,-269.04214919,0.00029875,2]
[424683773,1781046666000,-351.70147468,0.00029875,2]
[424683775,1781046666000,-1428.94265567,0.00029875,2]
[424683770,1781046666000,-225.45675795,0.00029875,2]
[424683755,1781046666000,-352.73743113,0.00029875,2]
[424683767,1781046666000,-355.01568601,0.00029875,2]
[424683754,1781046666000,-458.5993034,0.00029875,2]
[424683741,1781046666000,-363.16015707,0.00029875,2]
[424683752,1781046666000,-538.16031375,0.00029875,2]
[424683780,1781046666000,-486.76158334,0.00029875,2]
[424683729,1781046666000,-616.6613307,0.00029875,2]
[424683730,1781046666000,-472.81469587,0.00029875,2]
[424683731,1781046666000,-494.20826825,0.00029875,2]
[424683732,1781046666000,-578.43880495,0.00029875,2]
[424683728,1781046666000,-577.80687094,0.00029875,2]
[424683734,1781046666000,-600.38831641,0.00029875,2]
[424683735,1781046666000,-466.7545728,0.00029875,2]
[424683736,1781046666000,-629.90956564,0.00029875,2]
[424683737,1781046666000,-540.42209253,0.00029875,2]
[424683738,1781046666000,-173.59209162,0.00029875,2]
[424683740,1781046666000,-482.46521712,0.00029875,2]
[424683739,1781046666000,-1174.22954918,0.00029875,2]
[424683742,1781046666000,-1355.88613528,0.00029875,2]
[424683743,1781046666000,-475.95581674,0.00029875,2]
[424683744,1781046666000,-233.30863104,0.00029875,2]
[424683745,1781046666000,-353.18950786,0.00029875,2]
[424683746,1781046666000,-311.29909695,0.00029875,2]
[424683747,1781046666000,-806.54245184,0.00029875,2]
[424683748,1781046666000,-531.63977504,0.00029875,2]
[424683750,1781046666000,-586.38641457,0.00029875,2]
[424683749,1781046666000,-607.18287764,0.00029875,2]
[424683751,1781046666000,-211.95536089,0.00029875,2]
[424683753,1781046666000,-473.9819509,0.00029875,2]
[424683778,1781046666000,-165.17637822,0.00029875,2]
[424683733,1781046666000,-666.82733646,0.00029875,2]
[424683781,1781046666000,-590.04721108,0.00029875,2]
[424683810,1781046666000,-477.65993953,0.00029907,2]
[424683812,1781046666000,-494.35361191,0.00029907,2]
[424683813,1781046666000,-500.68032561,0.00029907,2]
[424683815,1781046666000,-200.0,0.00029924,2]
[424683821,1781046666000,-855.61615278,0.00029934,2]
[424683822,1781046666000,-299.23850119,0.00029934,2]
[424683823,1781046666000,-590.61451547,0.00029934,2]
[424683814,1781046666000,-200.0,0.00029924,2]
[424683825,1781046666000,-554.12379513,0.00029935,2]
[424683824,1781046666000,-282.99334276,0.00029934,2]
[424683820,1781046666000,-482.78987981,0.00029934,2]
[424683818,1781046666000,-545.19168734,0.00029934,2]
[424683819,1781046666000,-590.66468046,0.00029934,2]
[424683817,1781046666000,-369.13146286,0.00029934,2]
[424683826,1781046666000,-672.89010755,0.00029935,2]
[424683828,1781046666000,-11677.78,0.00029969,2]
[424683829,1781046666000,-241.71117616,0.0002999,2]
[424683830,1781046666000,-469.63,0.00029991,2]
[424683832,1781046666000,-6075.0,0.00029991,2]
[424683827,1781046666000,-3153.62,0.00029969,2]
[424683833,1781046666000,-191.951785,0.00029997,7]
[424683831,1781046666000,-3643.0,0.00029991,2]
[424683783,1781046666000,-232.22703317,0.00029877,2]
[424683809,1781046666000,-536.43745489,0.00029907,2]
[424683811,1781046666000,-530.63308267,0.00029907,2]
[424683816,1781046666000,-555.16372669,0.00029934,2]
[424683804,1781046666000,-6102.11610742,0.000299,2]
[424683782,1781046666000,-574.27390648,0.00029875,2]
[424683807,1781046666000,-200.0,0.00029901,2]
[424683789,1781046666000,-438.52531329,0.00029877,2]
[424683786,1781046666000,-431.7888779,0.00029877,2]
[424683785,1781046666000,-517.27318613,0.00029877,2]
[424683788,1781046666000,-304.06310187,0.00029877,2]
[424683787,1781046666000,-269.18748354,0.00029877,2]
[424683784,1781046666000,-460.16157359,0.00029877,2]
[424683791,1781046666000,-447.92753795,0.00029877,2]
[424683792,1781046666000,-303.22103381,0.00029877,2]
[424683796,1781046666000,-610.39102749,0.00029877,2]
[424683793,1781046666000,-248.66237364,0.00029877,2]
[424683790,1781046666000,-574.13384248,0.00029877,2]
[424683795,1781046666000,-243.71608679,0.00029877,2]
[424683800,1781046666000,-800.86720089,0.00029877,2]
[424683794,1781046666000,-207.44477456,0.00029877,2]
[424683801,1781046666000,-180.25229929,0.00029882,4]
[424683798,1781046666000,-229.08570754,0.00029877,2]
[424683799,1781046666000,-238.83737822,0.00029877,2]
[424683797,1781046666000,-719.14587461,0.00029877,2]
[424683806,1781046666000,-6102.11610734,0.000299,2]
[424683803,1781046666000,-215.89329178,0.000299,30]
[424683805,1781046666000,-6102.11610734,0.000299,2]
[424683802,1781046666000,-67623.68477523,0.000299,2]
[424683808,1781046666000,-200.0,0.00029901,2]
[424683871,1781046667000,-7132.48695997,0.0003,3]
[424683866,1781046667000,-151.0,0.0003,7]
[424683872,1781046667000,-200.0,0.0003,2]
[424683873,1781046667000,-200.0,0.0003,2]
[424683870,1781046667000,-650.0,0.0003,2]
[424683860,1781046667000,-246.33295976,0.0003,2]
[424683868,1781046667000,-22500.0,0.0003,2]
[424683861,1781046667000,-369.19371428,0.0003,30]
[424683864,1781046667000,-23701.31800058,0.0003,7]
[424683877,1781046667000,-22500.0,0.0003,2]
[424683869,1781046667000,-25000.0,0.0003,2]
[424683874,1781046667000,-200.0,0.0003,2]
[424683888,1781046667000,-215.89329178,0.0003,10]
[424683875,1781046667000,-1785.79,0.0003,2]
[424683879,1781046667000,-25000.0,0.0003,2]
[424683880,1781046667000,-12500.0,0.0003,2]
[424683878,1781046667000,-2500.0,0.0003,2]
[424683881,1781046667000,-200.0,0.0003,2]
[424683882,1781046667000,-10000.0,0.0003,2]
[424683884,1781046667000,-2500.0,0.0003,2]
[424683883,1781046667000,-22500.0,0.0003,2]
[424683885,1781046667000,-25000.0,0.0003,2]
[424683886,1781046667000,-15000.0,0.0003,2]
[424683887,1781046667000,-13112.16,0.0003,2]
[424683865,1781046667000,-23701.31800058,0.0003,7]
[424683876,1781046667000,-9999.99,0.0003,2]
[424683862,1781046667000,-1907.3151508,0.0003,2]
[424683837,1781046667000,-735.22,0.00029999,3]
[424683867,1781046667000,-199.974138,0.0003,7]
[424683835,1781046667000,-220.56,0.00029999,3]
[424683834,1781046667000,-260.28,0.00029999,3]
[424683890,1781046667000,-261.77629756,0.00030014,2]
[424683836,1781046667000,-514.65,0.00029999,3]
[424683838,1781046667000,-35605.08341484,0.0003,5]
[424683845,1781046667000,-2000.0,0.0003,14]
[424683844,1781046667000,-87877.0,0.0003,2]
[424683839,1781046667000,-11372.57977375,0.0003,2]
[424683843,1781046667000,-20271.0182104,0.0003,2]
[424683842,1781046667000,-1360.46591348,0.0003,5]
[424683841,1781046667000,-7000.0,0.0003,3]
[424683840,1781046667000,-186.61122448,0.0003,2]
[424683863,1781046667000,-2000.0,0.0003,3]
[424683846,1781046667000,-1125.82724966,0.0003,2]
[424683853,1781046667000,-518.83435483,0.0003,24]
[424683854,1781046667000,-40564.63731418,0.0003,2]
[424683857,1781046667000,-993.13,0.0003,7]
[424683855,1781046667000,-145225.22578479,0.0003,7]
[424683847,1781046667000,-1853.69363053,0.0003,2]
[424683856,1781046667000,-145225.22578479,0.0003,7]
[424683849,1781046667000,-400.0,0.0003,20]
[424683852,1781046667000,-166.18592264,0.0003,2]
[424683850,1781046667000,-1000.0,0.0003,2]
[424683851,1781046667000,-527.93060619,0.0003,30]
[424683858,1781046667000,-144336.91663527,0.0003,7]
[424683859,1781046667000,-144336.91663527,0.0003,7]
[424683848,1781046667000,-588.5559231,0.0003,4]
[424683893,1781046667000,-1000.0,0.0003007,2]
[424683895,1781046667000,-1179.26,0.000301,30]
[424683892,1781046667000,-500.0,0.0003007,2]
[424683922,1781046667000,-150.0,0.00030137,2]
[424683923,1781046667000,-500.0,0.00030137,3]
[424683918,1781046667000,-500.0,0.00030137,3]
[424683924,1781046667000,-500.0,0.00030137,3]
[424683921,1781046667000,-500.0,0.00030137,3]
[424683920,1781046667000,-500.0,0.00030137,3]
[424683930,1781046667000,-250.0,0.00030137,2]
[424683933,1781046667000,-250.0,0.00030137,2]
[424683935,1781046667000,-500.0,0.00030137,3]
[424683940,1781046667000,-1623.39,0.00030137,2]
[424683938,1781046667000,-1181.13,0.00030137,30]
[424683934,1781046667000,-500.0,0.00030137,3]
[424683939,1781046667000,-1810.92,0.00030137,2]
[424683931,1781046667000,-250.0,0.00030137,2]
[424683937,1781046667000,-1579.27288988,0.00030137,2]
[424683941,1781046667000,-343.19,0.00030137,120]
[424683936,1781046667000,-151.92989202,0.00030137,5]
[424683932,1781046667000,-250.0,0.00030137,2]
[424683891,1781046667000,-903.0,0.00030037,2]
[424683942,1781046667000,-1208.42,0.00030137,2]
[424683947,1781046667000,-250.0,0.00030137,120]
[424683944,1781046667000,-575.98,0.00030137,2]
[424683946,1781046667000,-420.49,0.00030137,120]
[424683945,1781046667000,-403.65,0.00030137,2]
[424683948,1781046667000,-250.0,0.00030137,120]
[424683929,1781046667000,-250.0,0.00030137,2]
[424683927,1781046667000,-250.0,0.00030137,2]
[424683943,1781046667000,-840.32,0.00030137,2]
[424683919,1781046667000,-500.0,0.00030137,3]
[424683928,1781046667000,-250.0,0.00030137,2]
[424683889,1781046667000,-152.0,0.00030001,14]
[424683894,1781046667000,-188.77,0.000301,30]
[424683897,1781046667000,-22500.0,0.00030125,2]
[424683898,1781046667000,-22500.0,0.00030125,2]
[424683901,1781046667000,-174724.53193586,0.0003013,7]
[424683900,1781046667000,-22500.0,0.00030125,2]
[424683899,1781046667000,-12500.0,0.00030125,2]
[424683902,1781046667000,-3153.67,0.00030136,30]
[424683903,1781046667000,-11677.83,0.00030136,30]
[424683904,1781046667000,-150.0,0.00030136,2]
[424683905,1781046667000,-300.0,0.00030137,14]
[424683906,1781046667000,-909.19106664,0.00030137,2]
[424683896,1781046667000,-2199.17,0.000301,2]
[424683909,1781046667000,-1000.0,0.00030137,30]
[424683912,1781046667000,-1000.0,0.00030137,30]
[424683925,1781046667000,-500.0,0.00030137,3]
[424683926,1781046667000,-250.0,0.00030137,2]
[424683907,1781046667000,-287.27,0.00030137,25]
[424683915,1781046667000,-529.66870379,0.00030137,2]
[424683917,1781046667000,-306.88,0.00030137,120]
[424683914,1781046667000,-353.11246919,0.00030137,2]
[424683913,1781046667000,-176.5562346,0.00030137,2]
[424683911,1781046667000,-2500.0,0.00030137,120]
[424683908,1781046667000,-815.39,0.00030137,2]
[424683910,1781046667000,-1000.0,0.00030137,120]
[424683916,1781046667000,-236.5044275,0.00030137,2]
[424683978,1781046668000,-861.55,0.00030236,30]
[424683953,1781046668000,-166.6875,0.00030137,2]
[424683971,1781046668000,-200.0,0.000302,2]
[424683975,1781046668000,-600.87,0.000302,2]
[424683973,1781046668000,-600.87,0.000302,2]
[424683972,1781046668000,-200.0,0.000302,2]
[424683974,1781046668000,-403.51,0.000302,2]
[424683979,1781046668000,-861.56,0.00030236,30]
[424683982,1781046668000,-430.78,0.00030236,30]
[424683980,1781046668000,-430.78,0.00030236,30]
[424683986,1781046668000,-22500.0,0.0003025,2]
[424683981,1781046668000,-430.78,0.00030236,30]
[424683987,1781046668000,-25000.0,0.0003025,2]
[424683988,1781046668000,-22500.0,0.0003025,2]
[424683985,1781046668000,-1344.1,0.00030239,2]
[424683983,1781046668000,-430.78,0.00030236,30]
[424683989,1781046668000,-2500.0,0.0003025,2]
[424683970,1781046668000,-608.0,0.000302,120]
[424683984,1781046668000,-278.55,0.00030237,4]
[424683967,1781046668000,-3328.71680134,0.0003014,4]
[424683959,1781046668000,-6465.80478824,0.0003014,4]
[424683977,1781046668000,-200.0,0.00030223,2]
[424683951,1781046668000,-250.0,0.00030137,120]
[424683952,1781046668000,-250.0,0.00030137,120]
[424683949,1781046668000,-250.0,0.00030137,120]
[424683950,1781046668000,-250.0,0.00030137,120]
[424683954,1781046668000,-6475.04,0.00030137,7]
[424683956,1781046668000,-6465.80478824,0.0003014,4]
[424683957,1781046668000,-6465.80478824,0.0003014,4]
[424683964,1781046668000,-3328.71680134,0.0003014,4]
[424683965,1781046668000,-3328.71680134,0.0003014,4]
[424683998,1781046668000,-562.0,0.00030288,30]
[424683961,1781046668000,-2024.08696035,0.0003014,4]
[424683955,1781046668000,-150.0,0.00030137,2]
[424683958,1781046668000,-6465.80478824,0.0003014,4]
[424683960,1781046668000,-2024.08696035,0.0003014,4]
[424683962,1781046668000,-2024.08696035,0.0003014,4]
[424683963,1781046668000,-2024.08696035,0.0003014,4]
[424683966,1781046668000,-3328.71680134,0.0003014,4]
[424683968,1781046668000,-711.532411,0.0003016,120]
[424683976,1781046668000,-200.0,0.00030223,2]
[424683969,1781046668000,-15826.93546896,0.000302,2]
[424683992,1781046668000,-22500.0,0.0003025,2]
[424684010,1781046668000,-10000.0,0.00030333,2]
[424683990,1781046668000,-25000.0,0.0003025,2]
[424684018,1781046668000,-261.77629756,0.00030362,2]
[424684020,1781046668000,-22499.96,0.00030375,2]
[424684023,1781046668000,-742.70137766,0.00030378,2]
[424684019,1781046668000,-22500.0,0.00030375,2]
[424684022,1781046668000,-22500.0,0.00030375,2]
[424684021,1781046668000,-12500.0,0.00030375,2]
[424684029,1781046668000,-485.99107069,0.00030453,2]
[424684026,1781046668000,-167.15216215,0.0003042,2]
[424684017,1781046668000,-1055.93,0.00030352,7]
[424684027,1781046668000,-524.08549316,0.00030453,2]
[424684028,1781046668000,-451.36800558,0.00030453,2]
[424684030,1781046668000,-479.4120694,0.00030453,2]
[424684032,1781046668000,-493.0236744,0.00030455,2]
[424684033,1781046668000,-620.8556569,0.00030455,2]
[424684035,1781046668000,-624.83280836,0.00030455,2]
[424684034,1781046668000,-776.92700056,0.00030455,2]
[424684031,1781046668000,-499.67250493,0.00030455,2]
[424683993,1781046668000,-2500.0,0.0003025,2]
[424684024,1781046668000,-150.0,0.0003041,120]
[424684012,1781046668000,-662.0,0.00030343,30]
[424684025,1781046668000,-184.85,0.00030411,120]
[424684013,1781046668000,-798.0,0.00030343,30]
[424683994,1781046668000,-25000.0,0.0003025,2]
[424684015,1781046668000,-2143.0,0.00030351,30]
[424684000,1781046668000,-778.0,0.00030288,30]
[424683995,1781046668000,-150.0,0.00030273,120]
[424683991,1781046668000,-12500.0,0.0003025,2]
[424683997,1781046668000,-742.0,0.00030288,30]
[424683999,1781046668000,-2096.0,0.00030288,30]
[424684001,1781046668000,-620.0,0.00030288,30]
[424684002,1781046668000,-3176.0,0.00030288,30]
[424683996,1781046668000,-182.600014,0.00030275,5]
[424684004,1781046668000,-1207.0,0.00030288,30]
[424684006,1781046668000,-6465.80478824,0.00030291,4]
[424684005,1781046668000,-326.0,0.00030288,30]
[424684007,1781046668000,-2024.08696035,0.00030291,4]
[424684008,1781046668000,-3328.71680134,0.00030291,4]
[424684009,1781046668000,-1000.0,0.000303,120]
[424684011,1781046668000,-772.0,0.00030341,5]
[424684016,1781046668000,-4051.0,0.00030351,30]
[424684014,1781046668000,-665.0,0.00030351,30]
[424684003,1781046668000,-698.0,0.00030288,30]
[424684069,1781046669000,-466.94864542,0.00030455,2]
[424684072,1781046669000,-706.22493838,0.00030455,2]
[424684070,1781046669000,-170.40400356,0.00030455,2]
[424684067,1781046669000,-161.02732679,0.00030455,2]
[424684054,1781046669000,-213.55924965,0.00030455,2]
[424684076,1781046669000,-622.57655943,0.00030455,2]
[424684075,1781046669000,-163.68480289,0.00030455,2]
[424684065,1781046669000,-634.60775565,0.00030455,2]
[424684068,1781046669000,-529.78426179,0.00030455,2]
[424684066,1781046669000,-178.39596122,0.00030455,2]
[424684074,1781046669000,-670.33251131,0.00030455,2]
[424684079,1781046669000,-631.97593453,0.00030455,2]
[424684078,1781046669000,-717.547085,0.00030455,2]
[424684077,1781046669000,-423.91072178,0.00030455,2]
[424684087,1781046669000,-680.74385051,0.00030455,2]
[424684082,1781046669000,-889.46745293,0.00030455,2]
[424684080,1781046669000,-611.46573787,0.00030455,2]
[424684083,1781046669000,-349.56743561,0.00030455,2]
[424684081,1781046669000,-529.10614669,0.00030455,2]
[424684084,1781046669000,-571.74348502,0.00030455,2]
[424684085,1781046669000,-169.12908911,0.00030455,2]
[424684064,1781046669000,-1807.84818038,0.00030455,2]
[424684086,1781046669000,-631.86018135,0.00030455,2]
[424684073,1781046669000,-809.57717018,0.00030455,2]
[424684062,1781046669000,-169.10541264,0.00030455,2]
[424684048,1781046669000,-800.51775522,0.00030455,2]
[424684063,1781046669000,-168.1843901,0.00030455,2]
[424684040,1781046669000,-770.40916126,0.00030455,2]